bitfinex-derivatives/quotes_SOLF0:USTF0_20250113
["timestamp","ask_amount","ask_price","bid_price","bid_amount"]
[1736747056744,2.7167,184.15,184.04,18.93541255]
[1736747057043,2.7167,184.15,184.1,2.7173]
[1736747057247,2.7167,184.15,184.04,41.36505244]
[1736747057548,7.34763636,184.14,184.07,7.34763636]
[1736747057749,7.34763636,184.14,184.11,2.7172]
[1736747057950,7.34763636,184.14,184.09,7.34763636]
[1736747058150,7.34763636,184.16,184.09,7.34763636]
[1736747058446,7.34763636,184.16,184.14,2.7168]
[1736747059046,7.34763636,184.16,184.15,2.7166]
[1736747059442,11.4763608,184.2,184.08,11.4763608]
[1736747059945,2.7161,184.19,184.14,2.7167]
[1736747060146,8.7735,184.21,184.09,1.6498]
[1736747060548,2.7162,184.19,184.09,1.6498]
[1736747060752,8.7735,184.21,184.09,1.6498]
[1736747061054,3.1535,184.21,184.09,1.6498]
[1736747061250,3.1535,184.21,184.12,2.717]
[1736747061452,3.1535,184.21,184.09,1.6498]
[1736747062155,11.4763608,184.19,184.09,1.6498]
[1736747062953,11.4763608,184.19,184.08,11.4763608]
[1736747063348,2.7166,184.16,184.11,2.7172]
[1736747063554,11.4763608,184.19,184.11,2.7172]
[1736747064655,2.7166,184.16,184.05,11.4763608]
[1736747064856,11.4763608,184.19,184.05,11.4763608]
[1736747065256,2.7163,184.18,184.05,11.4763608]
[1736747065955,3.1535,184.21,184.08,11.4763608]
[1736747067051,2.7159,184.2,184.15,2.7165]
[1736747068156,3.1535,184.21,184.08,11.4763608]
[1736747068856,5.8693,184.21,184.08,11.4763608]
[1736747070453,2.7159,184.2,184.08,11.4763608]
[1736747071255,2.7159,184.2,184.15,2.7165]
[1736747071456,2.7162,184.19,184.08,11.4763608]
[1736747072256,8.7735,184.21,184.08,11.4763608]
[1736747072456,8.7735,184.21,184.11,11.4763608]
[1736747073263,3.1535,184.21,184.17,2.7162]
[1736747073657,3.1535,184.21,184.11,11.4763608]
[1736747074061,3.1535,184.21,184.18,2.7162]
[1736747074455,3.1535,184.21,184.11,11.4763608]
[1736747074659,3.1535,184.21,184.17,2.7162]
[1736747075363,5.8693,184.21,184.17,2.7162]
[1736747076563,3.1535,184.21,184.11,11.4763608]
[1736747076763,3.1535,184.21,184.08,11.4763608]
[1736747077166,2.7163,184.18,184.13,2.7168]
[1736747078168,2.7163,184.18,184.14,2.7167]
[1736747079368,3.1535,184.21,184.08,11.4763608]
[1736747079568,3.1535,184.21,184.05,11.4763608]
[1736747079764,11.4763608,184.2,184.08,11.4763608]
[1736747080268,3.1535,184.21,184.11,11.4763608]
[1736747080665,3.1535,184.21,184.18,2.7162]
[1736747081469,10.49592616,184.21,184.18,2.7162]
[1736747082271,13.21172616,184.21,184.17,2.7163]
[1736747084374,10.05852616,184.19,184.15,2.7166]
[1736747085875,7.34242616,184.19,184.16,2.7165]
[1736747087476,7.34242616,184.17,184.1,7.34242616]
[1736747089173,2.7165,184.16,184.12,2.7171]
[1736747094283,7.34242616,184.17,184.07,75.73840916]
[1736747094580,2.7168,184.14,184.1,2.7173]
[1736747095179,2.7167,184.15,184.11,2.7172]
[1736747095480,7.34242616,184.17,184.11,7.34242616]
[1736747096782,2.7165,184.16,184.12,2.717]
[1736747098583,2.7166,184.15,184.11,2.7172]
[1736747099277,7.34242616,184.15,184.07,75.73840916]
[1736747099485,2.7171,184.12,184.08,2.7176]
[1736747100987,7.34242616,184.13,184.09,2.7175]
[1736747101386,7.34242616,184.17,184.09,7.34242616]
[1736747101584,7.34242616,184.17,184.12,2.7171]
[1736747101585,2.7165,184.16,184.12,2.7171]
[1736747101782,7.34242616,184.17,184.09,7.34242616]
[1736747102182,7.34242616,184.17,184.12,2.717]
[1736747102183,2.7166,184.16,184.12,2.717]
[1736747102384,7.34242616,184.15,184.07,7.34242616]
[1736747102582,7.34242616,184.13,184.03,7.56046541]
[1736747102777,7.34242616,184.11,184.06,2.7178]
[1736747102981,7.34242616,184.11,184.03,7.56046541]
[1736747103186,7.34242616,184.11,184.04,7.34242616]
[1736747103388,2.7175,184.1,184.05,2.7181]
[1736747103587,7.34242616,184.09,184.02,64.64896316]
[1736747103888,2.7182,184.05,184.02,64.64896316]
[1736747104091,7.34242616,184.05,184.02,62.09236316]
[1736747104289,2.7184,184.03,184.02,62.09236316]
[1736747104992,4.2909,184.04,184.02,62.09236316]
[1736747105192,1.5726,184.04,184.02,62.09236316]
[1736747105495,10.06082616,184.03,184.02,36.52706316]
[1736747107289,2.7184,184.03,184.02,36.52706316]
[1736747107995,5.64,184.05,184.02,36.52706316]
[1736747108891,11.49563495,184.08,184.02,36.52706316]
[1736747109090,17.13563495,184.08,184.02,36.52706316]
[1736747109898,2.7183,184.04,184.02,36.52706316]
[1736747111292,17.13563495,184.08,184.02,36.52706316]
[1736747112198,2.7183,184.04,184.02,36.52706316]
[1736747114303,17.13563495,184.08,184.02,36.52706316]
[1736747114494,2.7184,184.03,184.02,36.52706316]
[1736747119907,22.9912699,184.05,183.93,3.1355]
[1736747120207,11.49563495,184.0,183.93,3.1355]
[1736747121206,11.49563495,184.0,183.87,118.34126431]
[1736747121407,11.49563495,184.0,183.91,1.7014]
[1736747121804,11.49563495,184.0,183.94,2.7197]
[1736747122005,11.49563495,184.0,183.91,1.7014]
[1736747122308,2.7192,183.98,183.93,2.7198]
[1736747123606,2.7192,183.98,183.94,2.7197]
[1736747124315,11.49563495,184.0,183.95,2.7195]
[1736747124502,11.49563495,184.0,183.91,13.19703495]
[1736747124703,17.13563495,184.03,183.91,13.19703495]
[1736747125310,17.13563495,184.03,183.98,2.7191]
[1736747125506,17.13563495,184.03,183.91,13.19703495]
[1736747125702,11.49563495,184.05,184.0,2.7188]
[1736747126010,11.49563495,184.02,183.91,1.7014]
[1736747126309,11.49563495,184.02,183.94,2.7197]
[1736747126509,11.49563495,183.99,183.94,2.7197]
[1736747127210,14.21463495,183.99,183.94,2.7197]
[1736747127509,11.49563495,183.99,183.96,2.7194]
[1736747128008,11.49563495,183.99,183.91,1.7014]
[1736747128212,14.21423495,184.02,183.98,2.7191]
[1736747129214,14.21423495,184.02,183.97,2.7193]
[1736747129407,7.35929393,183.99,183.97,2.7193]
[1736747131318,7.35929393,183.99,183.92,7.35929393]
[1736747132216,7.35929393,183.99,183.94,2.7197]
[1736747132420,7.35929393,183.99,183.92,7.35929393]
[1736747132421,7.35929393,183.99,183.95,1.6608]
[1736747132914,194.0,184.09,183.95,1.6608]
[1736747133116,7.35929393,184.02,183.96,1.658]
[1736747133421,7.35929393,184.02,183.99,2.7189]
[1736747133915,7.35929393,184.02,183.96,1.658]
[1736747134118,7.35929393,184.02,184.0,2.7188]
[1736747134318,7.35929393,184.02,183.96,1.658]
[1736747134817,7.35929393,184.02,184.0,2.7188]
[1736747135416,7.35929393,184.04,183.96,9.01729393]
[1736747136015,7.35929393,184.04,184.01,2.7186]
[1736747136721,7.35929393,184.02,183.96,1.658]
[1736747137522,7.35929393,184.02,183.98,2.719]
[1736747138724,7.35929393,184.0,183.97,2.7192]
[1736747140317,7.35929393,183.98,183.95,4.3803]
[1736747141425,2.7185,184.03,183.93,2.7197]
[1736747141627,7.35929393,183.97,183.93,2.7197]
[1736747142535,7.35929393,183.97,183.91,5.9782]
[1736747143523,7.35929393,183.95,183.92,2.72]
[1736747144028,7.35929393,183.97,183.91,3.2581]
[1736747144226,7.35929393,183.97,183.94,2.7196]
[1736747144823,10.07859393,183.97,183.92,2.7199]
[1736747145028,7.35929393,183.95,183.92,2.7199]
[1736747145230,7.35929393,183.95,183.91,3.2581]
[1736747145427,5.64,183.99,183.91,3.2581]
[1736747145626,7.35929393,183.96,183.91,3.2581]
[1736747146121,7.35929393,183.94,183.91,3.2581]
[1736747146328,7.35929393,183.94,183.89,2.7204]
[1736747146530,7.35929393,183.92,183.86,1.6532]
[1736747147331,7.35929393,183.9,183.83,41.50429166]
[1736747147530,7.35929393,183.9,183.84,7.35929393]
[1736747148333,7.35929393,183.9,183.87,2.7207]
[1736747148537,132.07004966,183.98,183.86,7.35929393]
[1736747148728,7.35929393,183.93,183.89,2.7204]
[1736747149033,7.35929393,183.93,183.86,7.35929393]
[1736747149238,7.35929393,183.91,183.85,2.721]
[1736747149528,7.35929393,183.87,183.8,1.698]
[1736747149834,7.35929393,183.82,183.78,30.24186164]
[1736747150130,16.92209428,183.91,183.78,30.24186164]
[1736747150131,7.35929393,183.79,183.78,30.24186164]
[1736747150535,10.08119393,183.79,183.74,30.24186164]
[1736747150731,7.35929393,183.77,183.74,30.24186164]
[1736747151228,7.35929393,183.75,183.74,30.24186164]
[1736747151432,12.99929393,183.75,183.73,55.48372329]
[1736747151731,2.7227,183.74,183.65,2.724]
[1736747151933,7.35929393,183.7,183.64,7.35929393]
[1736747152128,7.35929393,183.7,183.59,30.15908278]
[1736747152330,5.64,183.75,183.66,7.35929393]
[1736747152534,7.35929393,183.73,183.66,7.35929393]
[1736747152931,5.64,183.75,183.66,7.35929393]
[1736747153127,7.35929393,183.75,183.68,7.35929393]
[1736747153333,5.64,183.76,183.66,11.52958273]
[1736747153729,14.25158273,183.79,183.66,11.52958273]
[1736747153931,5.64,183.78,183.66,11.52958273]
[1736747154234,5.64,183.78,183.72,11.52958273]
[1736747154435,5.64,183.78,183.73,4.7925]
[1736747154627,5.64,183.78,183.73,7.5152]
[1736747155332,5.64,183.78,183.73,4.7925]
[1736747155532,5.64,183.78,183.73,3.2065]
[1736747156735,5.64,183.78,183.72,2.7229]
[1736747157334,5.64,183.78,183.7,1.586]
[1736747157535,5.64,183.78,183.73,2.7228]
[1736747157736,5.64,183.78,183.7,1.586]
[1736747158334,5.64,183.78,183.73,2.7227]
[1736747158937,5.64,183.78,183.72,2.7229]
[1736747159138,5.64,183.78,183.7,1.586]
[1736747159635,5.64,183.78,183.74,2.7227]
[1736747159841,5.64,183.78,183.7,1.586]
[1736747160939,17.16958273,183.78,183.7,1.586]
[1736747161140,17.16958273,183.78,183.69,2.7233]
[1736747161336,17.16958273,183.78,183.65,11.52958273]
[1736747161738,5.64,183.78,183.68,11.52958273]
[1736747162339,5.64,183.78,183.69,11.52958273]
[1736747162638,17.16958273,183.78,183.66,11.52958273]
[1736747163038,17.16958273,183.78,183.72,2.7228]
[1736747163341,17.16958273,183.78,183.66,11.52958273]
[1736747163532,2.7223,183.77,183.71,2.7231]
[1736747164044,17.16958273,183.78,183.66,11.52958273]
[1736747164244,17.16958273,183.78,183.72,2.723]
[1736747164541,5.64,183.78,183.69,11.52958273]
[1736747164842,5.64,183.78,183.64,1.6792]
[1736747165044,5.64,183.78,183.67,11.52958273]
[1736747165537,11.52958273,183.77,183.67,11.52958273]
[1736747166846,11.52958273,183.77,183.7,2.7233]
[1736747166847,2.7225,183.76,183.7,2.7233]
[1736747168142,11.52958273,183.77,183.64,13.20878273]
[1736747168346,2.7227,183.74,183.68,2.7235]
[1736747168744,2.7227,183.74,183.64,13.20878273]
[1736747169147,2.7225,183.76,183.64,13.20878273]
[1736747169334,11.52958273,183.76,183.67,11.52958273]
[1736747169744,5.64,183.77,183.67,11.52958273]
[1736747169933,17.16958273,183.79,183.67,11.52958273]
[1736747170133,11.52958273,183.79,183.67,11.52958273]
[1736747170339,5.64,183.81,183.7,11.52958273]
[1736747170649,5.64,183.81,183.71,3.1177]
[1736747170843,2.7223,183.77,183.71,1.5689]
[1736747171143,11.52958273,183.79,183.67,11.52958273]
[1736747171839,2.7225,183.76,183.71,2.7231]
[1736747172035,11.52958273,183.79,183.67,11.52958273]
[1736747172447,2.7222,183.78,183.72,2.7229]
[1736747172643,11.52958273,183.79,183.72,2.7229]
[1736747172840,14.25168273,183.79,183.73,2.7227]
[1736747173147,14.25168273,183.79,183.67,11.52958273]
[1736747173841,5.64,183.78,183.67,11.52958273]
[1736747174350,8.3621,183.78,183.67,11.52958273]
[1736747175049,2.7222,183.77,183.72,2.7229]
[1736747175349,5.64,183.78,183.67,11.52958273]
[1736747175946,5.64,183.78,183.74,2.7227]
[1736747176446,5.64,183.78,183.67,11.52958273]
[1736747176640,5.64,183.78,183.75,2.7225]
[1736747181047,19.8872119,183.78,183.73,2.7228]
[1736747181551,19.8872119,183.78,183.72,1.6648]
[1736747181755,19.8872119,183.78,183.71,3.2339]
[1736747181756,17.1651119,183.78,183.66,11.5251119]
[1736747181946,11.5251119,183.75,183.67,1.5441]
[1736747182453,14.2476119,183.75,183.7,2.7232]
[1736747182947,14.2476119,183.75,183.71,2.7231]
[1736747184054,11.5251119,183.75,183.71,2.7231]
[1736747184547,11.5251119,183.75,183.67,1.5441]
[1736747184751,17.1651119,183.78,183.67,1.5441]
[1736747184951,17.1651119,183.78,183.68,1.5796]
[1736747185153,17.1651119,183.78,183.74,2.7227]
[1736747185355,17.1651119,183.78,183.69,1.6581]
[1736747185650,19.8872119,183.78,183.73,2.7228]
[1736747186458,17.1651119,183.78,183.69,1.6581]
[1736747187654,17.1651119,183.78,183.75,2.7224]
[1736747191459,19.8872119,183.78,183.74,2.7227]
[1736747191848,5.64,183.8,183.69,1.6581]
[1736747192056,11.5251119,183.79,183.75,2.7224]
[1736747192359,5.64,183.81,183.69,1.6581]
[1736747192555,5.64,183.81,183.79,2.7219]
[1736747193354,5.64,183.81,183.72,2.7229]
[1736747193551,5.64,183.81,183.69,13.1832119]
[1736747194059,5.64,183.81,183.77,2.7221]
[1736747194555,11.5251119,183.79,183.69,1.6581]
[1736747194757,11.5251119,183.76,183.69,1.6581]
[1736747195256,11.5251119,183.76,183.72,2.723]
[1736747196454,14.2475119,183.76,183.72,2.723]
[1736747197658,14.2475119,183.76,183.71,2.7231]
[1736747197958,11.5251119,183.73,183.67,1.5441]
[1736747199154,11.5251119,183.73,183.69,2.7234]
[1736747199355,11.5251119,183.76,183.67,1.5441]
[1736747200665,11.5251119,183.78,183.67,1.5441]
[1736747200962,2.7227,183.75,183.67,1.5441]
[1736747201762,5.64,183.81,183.71,2.7231]
[1736747201957,14.2475119,183.76,183.71,2.7231]
[1736747203365,7.37948892,183.73,183.71,2.7231]
[1736747204063,7.37948892,183.73,183.67,1.5441]
[1736747204064,7.37948892,183.73,183.72,2.723]
[1736747204664,5.64,183.81,183.68,7.37948892]
[1736747204856,7.37948892,183.74,183.73,2.7227]
[1736747205755,5.64,183.8,183.68,7.37948892]
[1736747205958,7.37948892,183.78,183.72,7.37948892]
[1736747206264,7.37948892,183.82,183.76,7.37948892]
[1736747206462,7.37948892,183.82,183.79,2.7218]
[1736747207063,8.55448,183.85,183.79,2.7218]
[1736747207259,7.37948892,183.81,183.79,2.7218]
[1736747207459,2.7215,183.82,183.77,2.7222]
[1736747209565,11.52042637,183.8,183.74,1.6063]
[1736747209763,11.52042637,183.8,183.73,1.6253]
[1736747210566,11.52042637,183.77,183.73,1.6253]
[1736747210767,11.52042637,183.77,183.72,2.7229]
[1736747212061,11.52042637,183.77,183.73,2.7228]
[1736747214367,14.24282637,183.77,183.71,2.723]
[1736747214561,17.16042637,183.77,183.71,2.723]
[1736747215366,2.7226,183.75,183.7,2.7233]
[1736747216466,2.7226,183.75,183.7,2.7232]
[1736747216859,17.16042637,183.77,183.68,4.8846]
[1736747217868,2.7224,183.76,183.71,2.723]
[1736747218866,2.7224,183.76,183.72,2.7229]
[1736747219270,17.16042637,183.77,183.68,4.8846]
[1736747219472,19.88272637,183.77,183.73,2.7228]
[1736747219871,14.24272637,183.77,183.73,2.7228]
[1736747220365,14.24272637,183.77,183.72,2.723]
[1736747220765,11.52042637,183.77,183.68,4.8846]
[1736747221073,11.52042637,183.8,183.7,11.52042637]
[1736747221267,5.64,183.82,183.7,11.52042637]
[1736747221470,5.64,183.82,183.78,2.722]
[1736747222665,5.64,183.82,183.8,2.7218]
[1736747222870,11.52042637,183.86,183.73,11.52042637]
[1736747223068,17.16042637,183.86,183.73,11.52042637]
[1736747223776,11.52042637,183.83,183.69,11.52042637]
[1736747224165,5.64,183.86,183.69,11.52042637]
[1736747224166,14.24222637,183.8,183.69,11.52042637]
[1736747224472,11.52042637,183.77,183.68,4.8846]
[1736747224666,14.24272637,183.77,183.71,2.723]
[1736747226578,14.24272637,183.77,183.68,3.2193]
[1736747226579,11.52042637,183.74,183.69,2.7233]
[1736747227872,11.52042637,183.74,183.68,1.6497]
[1736747228073,11.52042637,183.74,183.7,2.7232]
[1736747228979,11.52042637,183.74,183.68,1.6497]
[1736747229167,11.52042637,183.74,183.71,2.7231]
[1736747229372,11.52042637,183.74,183.68,1.6497]
[1736747230878,11.52042637,183.74,183.7,2.7233]
[1736747235187,11.52042637,183.71,183.64,1.6556]
[1736747235383,11.52042637,183.71,183.63,7.83677743]
[1736747235881,11.52042637,183.71,183.66,2.7238]
[1736747236087,11.52042637,183.71,183.63,7.83677743]
[1736747236287,11.52042637,183.77,183.65,11.52042637]
[1736747236488,11.52042637,183.77,183.66,1.593]
[1736747238088,2.7227,183.74,183.69,2.7234]
[1736747239893,2.7227,183.74,183.66,1.593]
[1736747239894,2.7227,183.74,183.7,2.7232]
[1736747241097,2.7227,183.74,183.69,2.7234]
[1736747241397,11.52042637,183.74,183.67,1.6671]
[1736747242095,2.723,183.72,183.67,4.3907]
[1736747243197,11.52042637,183.74,183.67,4.3907]
[1736747243387,11.52042637,183.74,183.67,2.7236]
[1736747243594,2.723,183.72,183.67,2.7236]
[1736747244098,2.723,183.72,183.66,1.593]
[1736747244296,2.723,183.72,183.68,2.7234]
[1736747244791,2.7228,183.73,183.69,2.7234]
[1736747244994,11.52042637,183.77,183.67,1.5504]
[1736747245195,11.52042637,183.77,183.67,3.1971]
[1736747245794,2.7228,183.74,183.69,2.7234]
[1736747246195,14.24322637,183.74,183.69,2.7234]
[1736747246395,2.723,183.72,183.68,2.7236]
[1736747247795,11.52042637,183.74,183.67,3.1971]
[1736747248096,11.52042637,183.74,183.69,2.7234]
[1736747248488,2.7232,183.71,183.67,2.7236]
[1736747250096,2.7232,183.71,183.66,1.593]
[1736747250894,14.24362637,183.71,183.66,1.593]
[1736747251091,14.24362637,183.71,183.67,2.7237]
[1736747251291,14.24362637,183.71,183.66,1.593]
[1736747251292,11.52042637,183.71,183.66,1.593]
[1736747251492,2.7234,183.7,183.66,4.3168]
[1736747251794,11.52042637,183.71,183.66,4.3168]
[1736747253098,14.24352637,183.71,183.66,4.3168]
[1736747254302,11.52042637,183.68,183.58,3.1496]
[1736747254505,5.64,183.67,183.58,3.1496]
[1736747255101,5.64,183.67,183.6,2.7247]
[1736747255102,2.7241,183.65,183.6,2.7247]
[1736747255299,11.52042637,183.65,183.55,1.6573]
[1736747255499,11.52042637,183.65,183.55,3.2378]
[1736747255699,2.7242,183.64,183.58,2.7249]
[1736747256301,11.52042637,183.62,183.55,3.2378]
[1736747258202,14.24502637,183.62,183.57,2.7252]
[1736747259905,11.52042637,183.65,183.55,3.2378]
[1736747260201,5.64,183.67,183.57,11.52042637]
[1736747260613,5.64,183.67,183.64,2.724]
[1736747260804,5.64,183.67,183.57,11.52042637]
[1736747261104,5.64,183.67,183.6,11.52042637]
[1736747261705,5.64,183.67,183.64,2.7241]
[1736747263706,5.64,183.67,183.62,2.7243]
[1736747265105,8.3638,183.67,183.62,2.7243]
[1736747265301,5.64,183.67,183.57,11.52042637]
[1736747265501,5.64,183.67,183.6,2.7246]
[1736747266007,5.64,183.67,183.62,2.7244]
[1736747266904,2.7239,183.66,183.61,2.7246]
[1736747267205,5.64,183.67,183.55,14.75822637]
[1736747267401,2.724,183.65,183.6,2.7248]
[1736747270404,2.7239,183.66,183.61,2.7245]
[1736747270599,11.52042637,183.65,183.55,3.2378]
[1736747270805,5.64,183.67,183.55,3.2378]
[1736747271108,11.52042637,183.62,183.56,2.7253]
[1736747271308,11.52042637,183.62,183.49,11.52042637]
[1736747271609,11.52042637,183.56,183.45,30.18917908]
[1736747271809,17.30042637,183.56,183.46,1.5833]
[1736747272008,20.02582637,183.56,183.49,2.7264]
[1736747272314,11.52042637,183.53,183.46,1.5833]
[1736747272500,11.52042637,183.53,183.47,2.7266]
[1736747272706,11.52042637,183.53,183.44,1.5467]
[1736747272906,5.78,183.56,183.42,1.5833]
[1736747273105,11.52042637,183.5,183.42,1.5833]
[1736747273501,138.16992445,183.56,183.42,13.10372637]
[1736747273711,11.52042637,183.55,183.48,2.7265]
[1736747273909,132.38992445,183.56,183.45,11.52042637]
[1736747274105,132.38992445,183.56,183.52,2.7259]
[1736747274506,132.38992445,183.56,183.47,1.6073]
[1736747275312,132.38992445,183.56,183.5,2.7261]
[1736747275509,132.38992445,183.56,183.47,1.6073]
[1736747275712,11.52042637,183.58,183.47,1.6073]
[1736747275914,5.94,183.6,183.55,2.7255]
[1736747276109,11.52042637,183.61,183.55,2.7255]
[1736747277417,8.6646,183.62,183.58,2.725]
[1736747277418,5.94,183.62,183.58,2.725]
[1736747278615,5.94,183.62,183.56,2.7252]
[1736747278921,5.94,183.62,183.53,1.6526]
[1736747279116,5.94,183.62,183.57,2.7252]
[1736747280018,8.6645,183.62,183.53,1.6526]
[1736747280521,2.7246,183.61,183.54,2.7255]
[1736747280914,5.94,183.62,183.53,1.6526]
[1736747281321,8.6645,183.62,183.55,2.7254]
[1736747281623,11.52042637,183.61,183.53,1.6526]
[1736747281823,11.52042637,183.61,183.55,2.7255]
[1736747282018,11.52042637,183.61,183.53,1.6526]
[1736747282019,132.3018195,183.67,183.53,1.6526]
[1736747282216,132.3018195,183.67,183.55,11.52042637]
[1736747282420,132.3018195,183.67,183.61,2.7245]
[1736747283420,132.3018195,183.67,183.56,1.5483]
[1736747283421,132.3018195,183.67,183.64,2.7242]
[1736747283827,11.2943677,183.7,183.61,11.52042637]
[1736747284128,11.2943677,183.7,183.64,11.52042637]
[1736747284323,11.2943677,183.7,183.65,1.6253]
[1736747284520,11.2943677,183.7,183.67,2.7236]
[1736747284823,11.2943677,183.7,183.65,1.6253]
[1736747285218,14.0176677,183.7,183.63,2.7242]
[1736747285423,14.0176677,183.7,183.62,1.5882]
[1736747285821,11.52042637,183.69,183.63,2.7243]
[1736747286126,14.24392637,183.69,183.63,2.7243]
[1736747286326,11.52042637,183.69,183.59,1.6736]
[1736747286626,2.7237,183.68,183.61,2.7245]
[1736747286825,11.52042637,183.69,183.61,2.7245]
[1736747288125,2.7237,183.67,183.61,2.7245]
[1736747288325,11.52042637,183.69,183.61,2.7245]
[1736747288924,11.52042637,183.66,183.59,1.6736]
[1736747289128,2.724,183.65,183.59,4.3984]
[1736747289528,2.724,183.65,183.6,2.7247]
[1736747289724,17.48042637,183.66,183.6,2.7247]
[1736747289919,17.48042637,183.66,183.59,1.6736]
[1736747290220,11.52042637,183.69,183.59,1.6736]
[1736747290530,11.2943677,183.7,183.6,11.52042637]
[1736747290822,11.52042637,183.69,183.6,11.52042637]
[1736747291023,11.52042637,183.66,183.59,1.6736]
[1736747291422,2.7242,183.64,183.56,1.6253]
[1736747291725,11.52042637,183.66,183.56,1.6253]
[1736747292231,14.24432637,183.66,183.59,2.7248]
[1736747292524,11.52042637,183.66,183.56,1.6253]
[1736747292829,2.7246,183.61,183.55,2.7255]
[1736747294120,2.7246,183.61,183.56,2.7253]
[1736747294923,11.52042637,183.6,183.5,1.5472]
[1736747295430,2.7252,183.58,183.52,2.7259]
[1736747296327,11.52042637,183.6,183.5,1.5472]
[1736747297721,2.7252,183.58,183.52,2.7259]
[1736747299225,11.52042637,183.57,181.86,42.90235692]
[1736747299425,11.52042637,183.57,183.45,4.9771]
[1736747299829,2.7256,183.55,183.5,2.7262]
[1736747300233,5.98,183.62,183.47,11.52042637]
[1736747300429,11.52042637,183.59,183.55,2.7255]
[1736747300629,11.52042637,183.59,183.47,11.52042637]
[1736747301134,11.52042637,183.59,183.57,2.7251]
[1736747301531,11.52042637,183.59,183.54,2.7256]
[1736747302337,11.52042637,183.59,183.47,11.52042637]
[1736747302539,11.52042637,183.59,183.52,2.7259]
[1736747302833,11.52042637,183.59,183.47,11.52042637]
[1736747303134,11.52042637,183.56,183.45,4.9771]
[1736747303323,14.24592637,183.56,183.45,4.9771]
[1736747303533,11.52042637,183.56,183.45,4.9771]
[1736747303730,11.52042637,183.56,183.5,2.7262]
[1736747304133,11.52042637,183.56,183.51,2.7261]
[1736747305339,11.52042637,183.56,183.45,4.9771]
[1736747305636,11.52042637,183.59,183.47,11.52042637]
[1736747306042,11.52042637,183.59,183.45,4.9771]
[1736747306337,11.52042637,183.56,183.45,4.9771]
[1736747306540,14.24592637,183.56,183.5,2.7262]
[1736747306933,11.52042637,183.56,183.45,4.9771]
[1736747307135,11.52042637,183.56,183.52,2.7259]
[1736747307537,11.52042637,183.56,183.45,4.9771]
[1736747307538,14.24622637,183.53,183.45,4.9771]
[1736747307740,11.52042637,183.53,183.45,4.9771]
[1736747308135,11.52042637,183.53,183.48,2.7265]
[1736747308334,11.52042637,183.53,183.45,4.9771]
[1736747308744,11.52042637,183.53,183.5,2.7262]
[1736747309239,5.98,183.54,183.5,2.7262]
[1736747310332,8.7057,183.54,183.48,2.7264]
[1736747310540,11.52042637,183.53,183.45,4.9771]
[1736747310940,11.52042637,183.53,183.47,2.7267]
[1736747312336,14.24632637,183.53,183.47,2.7267]
[1736747313742,2.7261,183.51,183.46,2.7268]
[1736747313940,11.52042637,183.5,183.45,3.2754]
[1736747314541,11.52042637,183.5,183.46,2.7268]
[1736747315454,14.24682637,183.5,183.45,6.0024]
[1736747316349,5.98,183.54,183.37,1.6777]
[1736747316350,11.52042637,183.47,183.37,1.6777]
[1736747316550,2.7268,183.46,183.41,2.7276]
[1736747316748,11.52042637,183.47,183.38,3.1525]
[1736747317850,14.24712637,183.47,183.41,2.7275]
[1736747318050,11.52042637,183.47,183.38,3.1525]
[1736747318953,11.52042637,183.5,183.39,11.52042637]
[1736747319452,11.52042637,183.5,183.46,2.7267]
[1736747319950,11.52042637,183.5,183.42,2.7274]
[1736747320251,11.52042637,183.5,183.39,11.52042637]
[1736747320653,11.52042637,183.5,183.46,2.7267]
[1736747320849,11.52042637,183.5,183.39,11.52042637]
[1736747321251,14.24622637,183.53,183.48,2.7264]
[1736747322251,11.52042637,183.53,183.42,11.52042637]
[1736747324152,14.24622637,183.53,183.48,2.7264]
[1736747326354,11.52042637,183.53,183.39,11.52042637]
[1736747326558,11.52042637,183.5,183.39,11.52042637]
[1736747326765,11.52042637,183.5,183.38,3.1525]
[1736747326955,11.52042637,183.47,183.38,3.1525]
[1736747327553,11.52042637,183.47,183.43,2.7273]
[1736747328959,2.7265,183.49,183.43,2.7273]
[1736747329463,11.52042637,183.5,183.38,3.1525]